Cogmind - Beta 17.1 @@@ ROGUE MODE // 2026.08.28 @ 22:25:54 Player: Finn Result: Destroyed by G-34 Mercenary with Small Laser Performance ------------- Evolutions (1) 500 Regions Visited (2) 400 Robots Destroyed (4) 20 Value Destroyed (65) 65 Prototype IDs (0) 0 Alien Tech Used (0) 0 Bonus (0) 0 TOTAL SCORE: 985 Bonus ------- None Cogmind --------- Core Integrity 0/400 Matter 275/300 Energy 99/100 System Corruption 7% Temperature Cool (6) Movement Core (50) Location -9/Materials Parts ------- > --- POWER (1) -------- (None) > --- PROPULSION (2) --- (None) > --- UTILITY (4) ------ Salvage Targeting Computer > --- WEAPON (2) ------- Heavy Assault Rifle > --- INVENTORY (5) ---- (None) Peak State ------------ > --- POWER ------------ Ion Engine > --- PROPULSION ------- Improved Hover Unit Improved Hover Unit > --- UTILITY ---------- Salvage Targeting Computer > --- WEAPON ----------- (None) > --- INVENTORY -------- (None) [Rating: 7] Favorites ----------- Power Ion Engine Engine Ion Engine Propulsion Wheel Wheel Wheel Hover Unit Improved Hover Unit Utility Salvage Targeting Computer Processor Salvage Targeting Computer Weapon Small Laser Energy Gun Small Laser Ballistic Gun Heavy Assault Rifle Build | -11 -10 -9 ------- Run | Yrd Mat Mat Slots Evolved 2 | . . 2 Power . | . . . Propulsion . | . . . Utility 2 | . . 2 Weapon . | . . . Parts Attached 9 | 4 . 5 Power 2 | 1 . 1 Engine 2 | 1 . 1 Core . | . . . Reactor . | . . . Propulsion 4 | 2 . 2 Treads . | . . . Leg . | . . . Wheel 2 | 2 . . Hover 2 | . . 2 Flight . | . . . Utility 1 | . . 1 Device . | . . . Storage . | . . . Processor 1 | . . 1 Hackware . | . . . Protection . | . . . Artifact . | . . . Weapon 2 | 1 . 1 Energy Gun 1 | 1 . . Energy Cannon . | . . . Ballistic Gun 1 | . . 1 Ballistic Cannon . | . . . Launcher . | . . . Special Weapon . | . . . Impact Weapon . | . . . Slashing Weapon . | . . . Piercing Weapon . | . . . Special Melee Weapon . | . . . Unidentified Prototypes . | . . . Parts Lost 7 | . 4 3 Power 2 | . 1 1 Propulsion 4 | . 2 2 Utility . | . . . Weapon 1 | . 1 . Highest Loss Streak 4 | . 4 3 To Critical Strikes . | . . . Average Backups . | 1 1 . Power . | . 1 . Propulsion . | . . . Utility . | . . . Weapon . | . . . Tool/Special . | . . . Unused Backups . | . . . Power . | . . . Propulsion . | . . . Utility . | . . . Weapon . | . . . Tool/Special . | . . . Average Slot Usage (%) 27 | . 49 16 Engine 9 | . 14 7 Wheel 8 | . 23 . Hover 1 | . . 2 Processor 3 | . . 5 Energy Gun 3 | . 10 . Peak Build Rating 7 | 4 4 7 Average Rating 2 | 1 3 2 On Entrance 1 | . 4 . Avg Prop Armor Cover (%) . | . . . Naked Turns 13 | . 6 7 Heaviest Build 6 | 6 6 5 Greatest Support 26 | 26 26 14 Greatest Overweight (x) 1 | 1 . 1 Average Overweight (x) . | . . . Largest Inventory Capacity 5 | 5 5 5 Average Capacity 5 | 5 5 5 Most Carried 4 | 4 1 2 Average Carried . | 1 1 . Final Capacity 5 | 5 5 5 Final Carried 1 | 1 1 . Class Distribution -------------------- 100% | Mutant Dominant Class ---------------- Mutant | -10/Materials Mutant | -9/Materials Resources | -11 -10 -9 ----------- Run | Yrd Mat Mat Matter Collected 206 | 191 . 15 Remotely . | . . . Salvage Created 75 | . 42 33 Parts 9 | . 4 5 Haulers Intercepted . | . . . Recyclers Shooed . | . . . Parts Field Recycled . | . . . Retrieved Matter . | . . . Parts Self-Destructed . | . . . Prevented . | . . . Parts Restored . | . . . Kills | -11 -10 -9 ------- Run | Yrd Mat Mat Combat Hostiles Destroyed 3 | . 2 1 Guns 3 | . 2 1 Classes Destroyed 3 | . 2 1 Worker 1 | . . 1 Swarmer 2 | . 1 1 Grunt 1 | . 1 . Best Kill Streak 2 | . 2 1 Combat Bots Only 2 | . 2 1 Max Kills in Single Turn 1 | . 1 1 Gunslinging . | . . . Exploded . | . . . Melee . | . . . Uniques/NPCs Destroyed . | . . . Combat | -11 -10 -9 -------- Run | Yrd Mat Mat Hostile Shots Fired 131 | . 47 84 Missed 33 | . 8 25 Hits 98 | . 39 59 Projectile 98 | . 39 59 Critical Strikes 1 | . . 1 Damage Taken 1013 | . 428 585 Core 625 | . 215 410 Absorbed by Shields . | . . . Core Remaining (%) 57 | 100 14 . Volleys Fired 12 | . 7 5 Largest 1 | . 1 1 Hottest 40 | . 40 23 Shots Fired 12 | . 7 5 Gun 12 | . 7 5 Cannon . | . . . Launcher . | . . . Special . | . . . Kinetic 5 | . . 5 Thermal 7 | . 7 . Explosive . | . . . Electromagnetic . | . . . Robot Hit Streak 2 | . 2 1 Robot Miss Streak 4 | . 4 3 Penetration Max . | . . . Secondary Targets . | . . . Shots Hit Robots 4 | . 3 1 Core Hits 10 | . 5 5 Critical Kills . | . . . Critical Parts Destroyed . | . . . Critical Strikes . | . . . Melee Attacks . | . . . Impact . | . . . Slashing . | . . . Piercing . | . . . Sneak Attacks . | . . . Combat Hostiles . | . . . Follow-up Attacks . | . . . Damage Inflicted 210 | . 95 115 Guns 107 | . 57 50 Cannons . | . . . Explosions . | . . . Melee . | . . . Ramming 103 | . 38 65 Kinetic 50 | . . 50 Thermal 57 | . 57 . Explosive . | . . . Electromagnetic . | . . . Impact . | . . . Slashing . | . . . Piercing . | . . . Highest Corruption 7 | . 2 7 Average Corruption 6 | . 2 6 Corruption Purged . | . . . Corruption Blocked . | . . . Effects 1 | . . 1 Message Errors 1 | . . 1 Overload Shots . | . . . Overflow Damage . | . . . Projectiles . | . . . Explosions . | . . . Melee . | . . . Knockbacks . | . . . Impact . | . . . Kinetic . | . . . Secondary . | . . . Self-Inflicted Damage 44 | . 15 29 Shots . | . . . Rammed 35 | . 17 18 Targets Rammed 35 | . 17 18 Kicked . | . . . Crushed . | . . . Highest Temperature 77 | . 77 . Average Temperature 44 | . 44 . Received Heat Transfer 222 | . 117 105 Siege Activations . | . . . Martial Activations . | . . . Shielding Activations . | . . . Robots Disrupted . | . . . Combat Hostiles . | . . . Robots Corrupted . | . . . Combat Hostiles . | . . . Parts Fried . | . . . Impact Corruptions . | . . . Robots Melted . | . . . Combat Hostiles . | . . . Parts Melted . | . . . Heat Transferred 125 | . 125 . Parts Sabotaged . | . . . Parts Stolen . | . . . Parts Stripped . | . . . Power Chain Reactions . | . . . Alert | -11 -10 -9 ------- Run | Yrd Mat Mat Maximum Alert Level . | . . . Low Security (%) 100 | 100 100 100 Level 1 . | . . . Level 2 . | . . . Level 3 . | . . . Level 4 . | . . . Level 5 . | . . . High Security . | . . . Max Security . | . . . Peak Influence 50 | . 50 50 Initial . | . . . Average 5 | . 9 5 Influence Increases 149 | . 54 95 Destroy 0b10 Robot/C 60 | . 40 20 Destroy 0b10 Robot/NC 5 | . . 5 Destroy Leader 20 | . 10 10 Successful Hack 4 | . 4 . Disable Machine 15 | . . 15 Lose Combat Pursuer 45 | . . 45 Influence Decreases 99 | . 54 45 Time Decay 49 | . 24 25 Lost Part 50 | . 30 20 Squads Dispatched . | . . . Investigation . | . . . Extermination . | . . . Reinforcement . | . . . Assault . | . . . Garrison . | . . . Intercept . | . . . Searches Triggered . | . . . Construction Impeded . | . . . Haulers Reinforced . | . . . Active Scanning Responses . | . . . Cargo Convoy Interrupts . | . . . Stealth | -11 -10 -9 --------- Run | Yrd Mat Mat Distress Signals 1 | . 1 . Communications Jammed . | . . . Distress Signals . | . . . Times Spotted 15 | . 5 10 Peak Tracking Total 9 | . 4 9 Tactical Retreats 2 | . . 2 Traps | -11 -10 -9 ------- Run | Yrd Mat Mat Traps Triggered . | . . . Indirectly . | . . . Trap Hack Attempts . | . . . Triggered . | . . . Disarmed . | . . . Reprogrammed . | . . . Reused . | . . . Traps Extracted . | . . . Installed . | . . . Triggered . | . . . Machines | -11 -10 -9 ---------- Run | Yrd Mat Mat Machines Disabled 1 | . . 1 Max in Single Turn 1 | . . 1 Machines Repaired . | . . . Machines Dismantled . | . . . Machines Sabotaged . | . . . Overloaded Fab Kills . | . . . Hacking | -11 -10 -9 --------- Run | Yrd Mat Mat Machines Accessed 1 | . 1 . Terminals 1 | . 1 . Fabricators . | . . . Repair Stations . | . . . Recycling Units . | . . . Scanalyzers . | . . . Garrison Access . | . . . Total Hacks 1 | . 1 . Successful 1 | . 1 . Failed . | . . . Catastrophic . | . . . Database Lockouts . | . . . Manual . | . . . Terminals 1 | . 1 . Fabricators . | . . . Repair Stations . | . . . Recycling Units . | . . . Scanalyzers . | . . . Garrison Access . | . . . Terminal Hacks 1 | . 1 . Dispatch Records 1 | . 1 . Fabricator Hacks . | . . . Repair Station Hacks . | . . . Recycling Unit Hacks . | . . . Scanalyzer . | . . . Garrison Access Hacks . | . . . Unauthorized Hacks . | . . . Terminals . | . . . Fabricators . | . . . Repair Stations . | . . . Recycling Units . | . . . Scanalyzers . | . . . Garrison Access . | . . . Data Cores Recovered . | . . . Used . | . . . Hacking Detections 1 | . 1 . Full Trace Events . | . . . Feedback Events . | . . . Feedback Blocked . | . . . Robot Schematics Acquired . | . . . Robots Built . | . . . Authchips . | . . . Time . | . . . Total Robot Build Rating . | . . . Part Schematics Acquired . | . . . Parts Built . | . . . Authchips . | . . . Time . | . . . Total Part Build Rating . | . . . Part Studies Acquired . | . . . Parts Repaired . | . . . Time . | . . . Parts Recycled . | . . . Recycled Matter . | . . . Retrieved Matter . | . . . Retrieved Components . | . . . Parts Scanalyzed . | . . . Part Schematics Acquired . | . . . Parts Damaged . | . . . Bothacking | -11 -10 -9 ------------ Run | Yrd Mat Mat Used RIF Installer . | . . . Robots Hacked . | . . . Non-combat . | . . . Combat . | . . . Robot Hacks Applied . | . . . Relay Couplers Released . | . . . Fabnet Peak Effective % . | . . . Robots Rewired . | . . . Allies Hacked . | . . . Hacks Repelled . | . . . Allies | -11 -10 -9 -------- Run | Yrd Mat Mat Total Allies . | . . . Largest Group . | . . . Highest-Rated Group . | . . . Highest-Rated Ally . | . . . Total Orders . | . . . Ally Attacks . | . . . Total Damage . | . . . Kills . | . . . Allies Corrupted . | . . . Allies Melted . | . . . Intel | -11 -10 -9 ------- Run | Yrd Mat Mat Active Infowar (turns) . | . . . Robot Analysis Total . | . . . Derelict Logs Recovered . | . . . Drone Launches . | . . . Drone Recoveries . | . . . Exploration | -11 -10 -9 ------------- Run | Yrd Mat Mat Turns Passed 279 | 41 86 152 Spaces Moved 246 | 37 64 145 Core 137 | 22 5 110 Treads . | . . . Legs . | . . . Wheels 74 | 15 59 . Hover 35 | . . 35 Flight . | . . . Fastest Speed 50 | 50 50 50 Average Speed 81 | 87 85 78 Slowest Speed 100 | 100 90 100 Overloaded Moves . | . . . Propulsion Burnouts . | . . . Robots Hopped . | . . . Potential Cave-ins . | . . . Cave-ins Triggered . | . . . Exploration Rate (%) 15 | 3 23 19 Regions Visited 2 Branch Regions . Pre-discovered Areas . | . . . Known Exits Taken . | . . . Unknown Exits Taken 2 | 1 1 . Scrap Searched . | . . . Spaces Dug . | . . . Terrain Destroyed . | . . . Melee . | . . . Projectile . | . . . AOE . | . . . Terrain Rammed . | . . . Walls Destroyed . | . . . Machines Disabled . | . . . Actions | -11 -10 -9 --------- Run | Yrd Mat Mat Total 311 | 45 87 179 Wait 2 | . . 2 Move 244 | 36 63 145 Hop . | . . . Pick Up 9 | 5 . 4 Fast Attach . | . . . Attach 9 | 4 . 5 Detach . | . . . Swap . | . . . Drop . | . . . Fire 12 | . 7 5 Melee . | . . . Ram 35 | . 17 18 Kick . | . . . Crush . | . . . Escape Stasis . | . . . Rewire . | . . . Trap . | . . . Miscellaneous . | . . . Route ------- -11/Scrapyard -10/Materials -9/Materials (discovered 1 exit: [*Min]) History --------- Turn | Location | Event 20 | -11/Scrapyard | Discovered new exit (range 13) 42 | -11/Scrapyard | Entered Materials 86 | -10/Materials | Discovered new exit (range 11) 121 | -10/Materials | Core integrity fell below 50% 127 | -10/Materials | Core integrity fell below 20% 128 | -10/Materials | Entered another Materials area 128 | -9/Materials | Evolved 2 slots: Utility x2 153 | -9/Materials | Lost 4 parts (1p2n1w) 208 | -9/Materials | Discovered new exit (range 16) 254 | -9/Materials | Core integrity fell below 50% 260 | -9/Materials | Core integrity fell below 20% 277 | -9/Materials | Lost 3 parts (1p2n) 280 | -9/Materials | Destroyed by G-34 Mercenary with Small Laser Last Messages --------------- 00244_ Slammed into G-34 Mercenary. 00244_ Destabilizing: Core damaged (-16). 00245_ Slammed into G-34 Mercenary. 00246_ Ion Engine destroyed. 00246_ System corrupted by crushing effect (+5). 00247_ Slammed into G-34 Mercenary. 00252_ K-01 Serf collects debris. 00253_ ECTP8BX:X,OJ4ZVEV/8G0XEM 00253_ Slammed into G-34 Mercenary. 00253_ S-10 Pest destroyed. 00254_ Slammed into G-34 Mercenary. 00254_ Salvage Targeting Computer broken. 00254_ Destabilizing: Short circuit. 00255_ Slammed into G-34 Mercenary. 00256_ K-01 Serf collects debris. 00257_ Slammed into G-34 Mercenary. 00259_ K-01 Serf cleans the TF Node. 00263_ Acquired Hvy. Assault Rifle. 00267_ S-10 Pest destroyed. 00276_ Processing Tank disabled. Map ----- +----------------------------------------------------+ | ??????????????????????????????????????????????? | | ??????????????????????????????????????????????? | | ??????????????????????????????????????????????? | | ??????????????????????????????????????????????? | | ??????????????????????????????????????????????? | | ??????????????????????????????????????????????? | | ??????????????????????????????????????????????? | | ??????????????????????????????????????????????? | | ??????????????????????????????????????????????? | | ?? ???????????????????????????????????????????? | | ?? ????#+??????????#######??????????????????? | | ?" ### ########+## #??????????????????? | | ? #??????????????????? | | ! % " #??????????????????? | | %%%%% #??????????????????? | | ?# %###### #??????????????????? | | ????###########%#???####+#####????????????????? | | ??????##??????# #???# [%= #????????????????? | | ???#### ##????# #???# """=* #????????????????? | | ???# ???# #???# "T" #????????????????? | | ???# "" ?### ###?# g !#????????????????? | | ???# ""S # #?# #????????????????? | | ???# "" # #?# """"" #????????????????? | | ???# + T #?# """""sg#????????????????? | | ???# """ # #?# """" +????????????????? | | ???? """ # #?# @s #????????????????? | | ???? """ ?## ##?########+#????????????????? | | ????? ??# #????????????????????????????? | | ############## #????????????????????????????? | | # " ## #????????????????????????????? | | # """"" ## #????????????????????????????? | | # """"" ?# #????????????????????????????? | | # """" ???# #????????????????????????????? | | # ?????# #????????????????????????????? | | ##/######## #????????????????????????????? | | = #????????????????????????????? | | #????????????????????????????? | | #????????????????????????????? | | ###### ####### #????????????????????????????? | | ???###/####### #????????????????????????????? | | ???# # #????????????????????????????? | | ???# # #????????????????????????????? | | ???# """ # #????????????????????????????? | | ???# """"" / #????????????????????????????? | | ???# """"" # #????????????????????????????? | | ???# """"" # #????????????????????????????? | | ???# """ # ########?????????????????????? | | ???# # # #?????????????????????? | | ???########### # #?????????????????????? | | ?????????????# # #?????????????????????? | +----------------------------------------------------+ Best States ------------- Heat Dissipation 28 Energy Generation 10 Energy Capacity 250 Matter Stores 300 Matter Capacity 300 Sight Range 16 Terrain Scan Density 10 Evasion (%) 53 Salvage Targeting 1 Item Schematics ----------------- None Robot Schematics ------------------ None Fabricated ------------ Nothing Repaired ---------- Nothing Studied --------- None Alien Tech Used ----------------- None Achievements -------------- None Challenges ------------ None Game ------ Seed BombDimensionalAccelerator Manual? 0 Play Time 00:05:34 Cumulative 17.7 hours Start 2026.08.28 @ 22:21:50 End 2026.08.28 @ 22:25:54 Sessions 1 Manual Loads 0 Difficulty Rogue Special Mode None Game No. 34 Rogue 17 Adventurer 15 Explorer 2 Win Type - Total 0 Types 0/0/0/0/0/0/0/0/0/0 Lore% 20 Gallery% 19 Achievement% 15 Wizard Run 0 Options --------- Layout 1 ASCII 0 Keyboard 0 Movement Mouse Keybinds 0 Fullscreen 1 Font 24/Smallcaps Map View 50x35 Zoom Use 0% Tactical HUD 1 Map Filters NONE Filters NONE Steam 1 RUN: c36bdd12-fbf2-49b9-adbc-4cde74a68379